Cogmind - Beta 15 @@@ ROGUE MODE // 2025.07.19 @ 05:50:36 Player: Vizer Result: Destroyed by P-80 Master with Gamma Rifle Performance ------------- Evolutions (7) 3500 Regions Visited (14) 2800 Robots Destroyed (252) 1260 Value Destroyed (11428) 11428 Prototype IDs (12) 240 Alien Tech Used (0) 0 Bonus (4744) 4744 TOTAL SCORE: 23972 Bonus ------- Triggered High Security 500 High Alert Combat Kills 2673 Follower Combat Kills 808 Entered DSFs 500 Scanned by Researcher 500 Friendly Fire -237 Cogmind --------- Core Integrity 0/1300 Matter 42/300 Energy 40/100 System Corruption 43% Temperature Cool (9) Movement Core (50) Location -3/Quarantine Parts ------- > --- POWER (2) -------- (None) > --- PROPULSION (5) --- (None) > --- UTILITY (10) ----- (None) > --- WEAPON (4) ------- (None) > --- INVENTORY (5) ---- Advanced Weight Redist. System Peak State ------------ > --- POWER ------------ Vortex Chain Reactor > --- PROPULSION ------- Biometal Medium Treads Biometal Heavy Treads Experimental Biometal Heavy Treads > --- UTILITY ---------- Advanced Heat Sink Large Storage Unit Improved Target Analyzer Improved Kinecellerator Damper Plating Improved Dynamic Insulation System Advanced Recalibrator > --- WEAPON ----------- Quantum Rifle Heavy Plasma Cannon Enhanced Nova Cannon Enhanced Hardcell Cannon > --- INVENTORY -------- Particle Reactor Micro Antimatter Reactor Heavy Treads Heavy Treads Improved Heat Sink Large Storage Unit Improved Kinecellerator Experimental Transmission Jammer Quantum Rifle Quantum Rifle KE Penetrator Hypervelocity Mass Driver Hypervelocity Mass Driver [Rating: 161] Favorites ----------- Power Heavy Ion Engine Engine Heavy Ion Engine Power Core Cooled Fission Core Reactor Light Antimatter Reactor Propulsion Light Treads Treads Light Treads Leg Myomer Leg Wheel Armored Huge Wheel Utility Large Storage Unit Device Advanced Heat Sink Storage Large Storage Unit Processor Improved Target Analyzer Protection Improved Light Armor Plating Weapon Heavy Plasma Cannon Energy Gun Heavy Particle Gun Energy Cannon Heavy Plasma Cannon Ballistic Gun KE Penetrator Ballistic Cannon Hypervelocity Mass Driver Launcher Hellfire Missile Launcher Build | -11 -10 -9 -8 -7 -6 -6 -6 -5 -4 -4 -4 -4 -3 -3 ------- Run | Yrd Mat Mat Mat Fac Fac Low Low Fac Fac Was Fac DSF Res Qua Slots Evolved 14 | . . 2 2 2 2 . . 2 2 . . . 2 . Power 1 | . . . . . . . . 1 . . . . . . Propulsion 3 | . . 2 . . . . . . . . . . 1 . Utility 8 | . . . 2 1 1 . . 1 2 . . . 1 . Weapon 2 | . . . . 1 1 . . . . . . . . . Parts Attached 185 | 5 8 25 12 9 15 12 1 30 16 10 . 1 38 3 Power 25 | 1 . 5 1 . 2 1 . 4 2 2 . . 6 1 Engine 10 | 1 . 5 1 . 1 . . 1 1 . . . . . Core 5 | . . . . . 1 . . 3 1 . . . . . Reactor 10 | . . . . . . 1 . . . 2 . . 6 1 Propulsion 47 | 2 2 9 2 2 3 3 . 7 6 3 . . 6 2 Treads 32 | . . 6 2 2 2 3 . 5 1 3 . . 6 2 Leg 14 | 2 2 3 . . 1 . . 1 5 . . . . . Wheel 1 | . . . . . . . . 1 . . . . . . Hover . | . . . . . . . . . . . . . . . Flight . | . . . . . . . . . . . . . . . Utility 71 | . 5 4 7 6 6 6 . 12 4 2 . . 19 . Device 42 | . 1 2 3 2 4 4 . 8 3 1 . . 14 . Storage 7 | . 4 1 . . . . . 1 . . . . 1 . Processor 5 | . . 1 1 1 . . . . . . . . 2 . Hackware . | . . . . . . . . . . . . . . . Protection 17 | . . . 3 3 2 2 . 3 1 1 . . 2 . Artifact . | . . . . . . . . . . . . . . . Weapon 42 | 2 1 7 2 1 4 2 1 7 4 3 . 1 7 . Energy Gun 16 | 1 1 2 1 1 2 1 1 2 . 1 . 1 2 . Energy Cannon 13 | . . 3 . . 2 1 . 2 2 1 . . 2 . Ballistic Gun 8 | 1 . 2 1 . . . . 3 . . . . 1 . Ballistic Cannon 4 | . . . . . . . . . 2 1 . . 1 . Launcher 1 | . . . . . . . . . . . . . 1 . Special Weapon . | . . . . . . . . . . . . . . . Impact Weapon . | . . . . . . . . . . . . . . . Slashing Weapon . | . . . . . . . . . . . . . . . Piercing Weapon . | . . . . . . . . . . . . . . . Special Melee Weapon . | . . . . . . . . . . . . . . . Unidentified Prototypes 7 | . . 2 . . . . . 1 . 2 . . 2 . Parts Lost 89 | . 1 1 4 1 8 8 2 10 10 . . . 28 16 Power 9 | . . . . . 1 . . 1 2 . . . 4 1 Propulsion 24 | . . 1 1 . 2 3 . 3 3 . . . 5 6 Utility 32 | . . . 2 1 3 3 1 3 3 . . . 11 5 Weapon 24 | . 1 . 1 . 2 2 1 3 2 . . . 8 4 Highest Loss Streak 9 | . 1 1 2 1 5 7 2 2 6 . . . 9 9 To Critical Strikes 1 | . . . . . . . . . 1 . . . . . Average Backups 12 | 1 4 12 13 13 14 10 13 13 10 11 11 12 11 11 Power 1 | . 1 2 2 2 2 2 2 1 . . 1 1 1 . Propulsion 2 | . 1 2 2 4 3 2 2 1 1 1 1 1 1 2 Utility 4 | . 2 3 2 3 5 4 6 6 3 4 5 5 3 4 Weapon 3 | . . 4 6 3 2 1 2 3 4 5 4 5 4 2 Tool/Special . | . . . . . . . . . . . . . . . Unused Backups 33 | . 2 8 1 3 1 1 1 9 1 . . . 1 5 Power 4 | . . 2 . . . 1 . 1 . . . . . . Propulsion 6 | . 1 . . 1 1 . 1 . . . . . . 2 Utility 10 | . 1 1 . 1 . . . 5 1 . . . . 1 Weapon 13 | . . 5 1 1 . . . 3 . . . . 1 2 Tool/Special . | . . . . . . . . . . . . . . . Average Slot Usage (%) 89 | . 91 98 98 91 98 95 99 93 86 80 63 63 74 50 Engine 3 | . 14 11 9 7 1 1 . 2 1 3 . . . . Core 1 | . . . . . 4 . . 3 7 4 . . . . Reactor 2 | . . . . . . 4 6 3 . 1 5 5 7 5 Treads 20 | . . 34 35 30 25 21 26 16 9 6 10 10 13 11 Leg 3 | . 28 7 . . . 3 . 1 7 11 . . . . Device 19 | . 2 10 18 13 13 22 25 25 27 21 15 15 22 9 Storage 7 | . 18 11 9 7 6 6 6 5 5 5 5 5 7 8 Protection 5 | . . . 7 6 12 7 6 6 5 3 5 5 2 2 Energy Gun 8 | . 12 3 12 22 18 10 12 8 3 4 5 5 4 1 Energy Cannon 7 | . . 8 . . 7 13 13 6 9 9 10 10 5 6 Ballistic Gun 3 | . 14 10 5 . . . . 6 3 . . . . . Ballistic Cannon 1 | . . . . . . . . . 3 5 5 5 3 . Peak Build Rating 161 | 5 7 22 34 45 57 56 56 87 101 132 132 134 161 125 Average Rating 66 | 2 6 15 29 41 53 51 55 73 90 116 132 133 131 90 On Entrance 63 | . 5 7 22 33 44 54 56 55 77 91 132 132 134 117 Naked Turns 6 | . . . . . . . . . . . . . . 6 Heaviest Build 171 | 9 19 36 47 54 69 74 71 97 129 151 149 149 171 122 Greatest Support 195 | 20 20 86 87 87 84 88 88 101 101 145 145 145 195 170 Greatest Overweight (x) 18 | 1 . 1 1 . . 1 . 3 4 2 1 1 1 18 Average Overweight (x) . | . . . . . . . . . 1 1 1 1 . . Largest Inventory Capacity 15 | 5 15 15 15 15 15 15 15 15 15 15 15 15 15 15 Average Capacity 14 | 5 7 14 15 15 15 15 15 15 15 15 15 15 15 13 Most Carried 15 | 2 8 15 15 15 15 15 15 15 15 15 12 15 15 14 Average Carried 12 | 1 4 12 14 13 14 11 14 14 10 11 12 13 12 12 Final Capacity 15 | 5 8 15 15 15 15 15 15 15 15 15 15 15 15 5 Final Carried 15 | 2 7 15 12 14 15 15 13 15 7 12 12 15 14 1 Class Distribution -------------------- 40% | Scavenger-Tank 18% | Scavenger-Gunner 13% | Tank 12% | Mutant 12% | Scavenger-Mutant Dominant Class ---------------- Mutant | -10/Materials Scavenger-Mutant | -9/Materials Mutant | -8/Materials Tank | -7/Factory Scavenger-Tank | -6/Factory Scavenger-Tank | -6/Lower Caves Scavenger-Gunner | -6/Lower Caves Scavenger-Tank | -5/Factory Scavenger-Gunner | -4/Factory Scavenger-Gunner | -4/Waste Scavenger-Tank | -4/Factory Scavenger-Tank | -4/DSF Scavenger-Tank | -3/Research Scavenger-Tank | -3/Quarantine Resources | -11 -10 -9 -8 -7 -6 -6 -6 -5 -4 -4 -4 -4 -3 -3 ----------- Run | Yrd Mat Mat Mat Fac Fac Low Low Fac Fac Was Fac DSF Res Qua Matter Collected 4657 | 38 50 728 344 90 168 213 30 676 567 132 . 77 1544 . Remotely . | . . . . . . . . . . . . . . . Salvage Created 13072 | . 36 1342 809 836 2080 604 42 1675 1592 . . 169 3887 . Parts 606 | . . 79 41 28 93 16 4 91 80 . . 4 170 . Haulers Intercepted 4 | . . 1 1 1 . . . . . . . . 1 . Recyclers Shooed 14 | . . 2 . . 4 . . 2 2 . . . 3 1 Parts Field Recycled . | . . . . . . . . . . . . . . . Retrieved Matter . | . . . . . . . . . . . . . . . Parts Self-Destructed 21 | . . . . . . 13 8 . . . . . . . Prevented . | . . . . . . . . . . . . . . . Kills | -11 -10 -9 -8 -7 -6 -6 -6 -5 -4 -4 -4 -4 -3 -3 ------- Run | Yrd Mat Mat Mat Fac Fac Low Low Fac Fac Was Fac DSF Res Qua Combat Hostiles Destroyed 195 | . 1 30 18 11 22 12 1 24 16 . . 2 58 . Guns 95 | . 1 18 16 11 12 1 . 15 5 . . . 16 . Cannons 84 | . . 12 . . 10 10 1 4 11 . . 2 34 . AOE 10 | . . . 1 . . . . 3 . . . . 6 . Classes Destroyed 19 | . 1 8 2 1 2 . . 2 1 . . 1 1 . Worker 12 | . . 1 . 1 1 . . 1 2 . . . 6 . Builder 16 | . . 1 1 . 3 . . . 5 . . . 6 . Hauler 4 | . . 1 1 1 . . . . . . . . 1 . Recycler 14 | . . 2 1 2 6 . . . 2 . . . 1 . Mechanic 3 | . . . . . 1 . . . 1 . . . 1 . Operator 2 | . . . . . . . . 1 1 . . . . . Watcher 5 | . . 1 1 . . . . 2 . . . . 1 . Swarmer 32 | . . 11 7 . 2 4 . . . . . . 8 . Saboteur 1 | . . . . . . . . . . . . . 1 . Grunt 72 | . 1 9 5 3 9 5 . 9 4 . . 1 26 . Brawler 8 | . . 1 . . 2 1 . 1 1 . . . 2 . Duelist 2 | . . . . . . . . . 1 . . . 1 . Sentry 31 | . . 9 3 5 3 2 . 4 2 . . . 3 . Specialist 2 | . . . . . 2 . . . . . . . . . Hunter 21 | . . . 2 2 2 . . 3 6 . . . 6 . Programmer 21 | . . . . 1 1 . 1 6 2 . . . 10 . Heavy 3 | . . . 1 . 1 . . . . . . 1 . . Behemoth 2 | . . . . . . . . 1 . . . . 1 . Martyr 1 | . . . . . . . . . . . . 1 . . Best Kill Streak 9 | . 1 4 4 3 7 4 1 5 8 . . 1 9 . Combat Bots Only 8 | . 1 4 4 2 5 4 1 4 4 . . 1 8 . Max Kills in Single Turn 4 | . 1 1 3 2 2 1 1 2 3 . . 2 4 . Gunslinging 1 | . . . 1 . . . . . . . . . . . Exploded 2 | . . . 1 . . . . 2 . . . . 2 . Melee . | . . . . . . . . . . . . . . . Uniques/NPCs Destroyed . | . . . . . . . . . . . . . . . Combat | -11 -10 -9 -8 -7 -6 -6 -6 -5 -4 -4 -4 -4 -3 -3 -------- Run | Yrd Mat Mat Mat Fac Fac Low Low Fac Fac Was Fac DSF Res Qua Hostile Shots Fired 1881 | . 10 170 101 146 144 116 8 185 172 . . 1 511 317 Missed 545 | . 2 49 22 52 48 28 1 46 53 . . . 149 95 Hits 1336 | . 8 121 79 94 96 88 7 139 119 . . 1 362 222 Melee 39 | . . . . . 3 3 . . 16 . . . 7 10 Projectile 1297 | . 8 121 79 94 93 85 7 139 103 . . 1 355 212 Critical Strikes 84 | . . 5 3 . 3 3 1 11 8 . . . 33 17 Actively Blocked 1 | . . . 1 . . . . . . . . . . . Part Disruptions 3 | . . . . . . . . . . . . . 2 1 Actively Blocked 1 | . . . . . . . . . . . . . 1 . Damage Taken 23645 | . 134 1237 1188 890 1498 1512 109 2678 2389 . . 86 7016 4908 Core 2283 | . 20 207 126 22 107 128 15 167 187 . . . 396 908 Absorbed by Shields 126 | . . 74 . . . . . 52 . . . . . . Reduced by Siege Mode 143 | . . . . . . . . . . . . . 143 . Redirected to Shielding 109 | . . . 109 . . . . . . . . . . . Ignored by Resistances 558 | . . . 116 . . . . . . . . . 442 . Regen/Repaired (Parts) 575 | . . 115 . . . . . . . 426 . . 34 . Core Remaining (%) 81 | 100 92 48 77 96 . . 70 83 . . . 83 . . Volleys Fired 589 | . 8 107 60 36 55 34 4 78 53 . . 2 147 5 Largest 4 | . 2 2 2 3 4 4 2 4 4 . . 4 4 1 Hottest 364 | . 60 136 110 165 290 325 180 320 291 . . 362 364 98 Shots Fired 1612 | . 11 188 117 108 219 77 10 286 177 1 . 7 406 5 Gun 990 | . 11 133 117 108 152 25 2 207 69 . . 1 165 . Cannon 613 | . . 55 . . 67 52 8 79 108 1 . 6 232 5 Launcher 9 | . . . . . . . . . . . . . 9 . Special . | . . . . . . . . . . . . . . . Kinetic 446 | . 8 100 36 . . . . 110 50 . . 2 140 . Thermal 959 | . . 88 81 108 219 77 10 70 76 1 . 5 219 5 Explosive 9 | . . . . . . . . . . . . . 9 . Electromagnetic 198 | . 3 . . . . . . 106 51 . . . 38 . Robot Hit Streak 22 | . 2 16 15 14 11 17 1 21 17 . . 1 22 7 Robot Miss Streak 6 | . 1 4 6 3 3 5 4 6 6 1 . 2 4 . Penetration Max 1 | . . . 1 . . . . 1 1 . . . 1 . Secondary Targets 4 | . . 1 2 . . . . . . . . . 1 . Max Gunslinging Chain 1 | . . 1 1 . . . . . . . . . 1 . Shots Hit Robots 1046 | . 7 114 81 72 142 52 2 181 108 . . 2 280 5 Core Hits 500 | . 2 49 33 32 76 26 1 80 62 1 . 3 135 . Critical Kills 25 | . . . . . . 1 . 2 3 . . . 19 . Critical Parts Destroyed 26 | . . . . . . . . 1 6 . . . 19 . Critical Strikes 69 | . . . 4 6 3 1 . 3 10 . . . 42 . Burn 13 | . . . 4 6 3 . . . . . . . . . Meltdown 3 | . . . . . . 1 . 1 . . . . 1 . Destroy 50 | . . . . . . . . 2 9 . . . 39 . Blast 1 | . . . . . . . . . . . . . 1 . Corrupt 2 | . . . . . . . . . 1 . . . 1 . Melee Attacks . | . . . . . . . . . . . . . . . Impact . | . . . . . . . . . . . . . . . Slashing . | . . . . . . . . . . . . . . . Piercing . | . . . . . . . . . . . . . . . Sneak Attacks . | . . . . . . . . . . . . . . . Combat Hostiles . | . . . . . . . . . . . . . . . Follow-up Attacks . | . . . . . . . . . . . . . . . Damage Inflicted 29187 | . 128 1723 1938 1586 3321 1460 88 4595 3189 31 . 182 10791 155 Guns 14906 | . 92 1084 1673 1384 2070 405 . 3153 1191 . . . 3854 . Cannons 11339 | . . 639 . . 1222 1055 88 1151 1891 31 . 182 4954 126 Explosions 2865 | . 36 . 265 202 . . . 279 100 . . . 1983 . Melee . | . . . . . . . . . . . . . . . Ramming 77 | . . . . . 29 . . 12 7 . . . . 29 Kinetic 6748 | . 79 813 580 . . . . 1817 796 . . 106 2557 . Thermal 17334 | . 36 910 1093 1586 3292 1460 88 1431 1640 31 . 76 5565 126 Explosive 2445 | . . . 265 . . . . 197 . . . . 1983 . Electromagnetic 2583 | . 13 . . . . . . 1138 746 . . . 686 . Impact . | . . . . . . . . . . . . . . . Slashing . | . . . . . . . . . . . . . . . Piercing . | . . . . . . . . . . . . . . . Highest Corruption 43 | . . 2 . . 6 6 2 12 7 7 7 7 13 43 Average Corruption 6 | . . 2 . . 5 3 1 7 6 7 7 7 9 24 Corruption Purged 5 | . . . . . . 5 . . . . . . . . Corruption Blocked . | . . . . . . . . . . . . . . . Effects 196 | . . 10 . . 6 43 3 45 4 22 . 4 30 29 Message Errors 24 | . . 1 . . . 6 . 7 1 2 . . 3 4 Matter Fused 47 | . . 1 . . 1 11 1 10 1 5 . 2 11 4 Heat Flow Errors 25 | . . 4 . . . 5 . 5 1 4 . 1 3 2 Energy Discharges 20 | . . 1 . . 2 3 . 6 . 2 . 1 2 3 Parts Rejected 6 | . . . . . . . . 1 . . . . 3 2 Parts Fused 9 | . . . . . . 1 . 4 . 2 . . . 2 Data Loss (minor) 29 | . . 2 . . 3 8 . 4 . 5 . . 5 2 Data Loss (major) 7 | . . . . . . 3 . 3 . . . . . 1 Misfires 9 | . . . . . . 2 2 2 1 1 . . 1 . Alerts 3 | . . 1 . . . 1 . . . 1 . . . . Misdirections 11 | . . . . . . . . 2 . . . . . 9 Weapon Failures 6 | . . . . . . 3 . 1 . . . . 2 . Overload Shots . | . . . . . . . . . . . . . . . Overflow Damage 430 | . . 3 24 21 . 61 3 5 19 . . . 280 14 Projectiles 177 | . . 3 . . . 61 3 5 14 . . . 85 6 Explosions 245 | . . . 24 21 . . . . 5 . . . 195 . Melee 8 | . . . . . . . . . . . . . . 8 Knockbacks 24 | . . . . . . . . . 3 . . . 21 . Impact 1 | . . . . . . . . . 1 . . . . . Kinetic 20 | . . . . . . . . . 2 . . . 18 . Secondary 3 | . . . . . . . . . . . . . 3 . Self-Inflicted Damage 377 | . 34 . 164 . . . . 72 32 . . . 75 . Shots 6 | . 1 . 2 . . . . 1 1 . . . 1 . Rammed 7 | . . . . . 4 . . 1 . . . . . 2 Targets Rammed 9 | . . . . . 5 . . 1 1 . . . . 2 Kicked 1 | . . . . . . . . . 1 . . . . . Crushed 1 | . . . . . 1 . . . . . . . . . Highest Temperature 608 | . 36 312 . 217 431 373 224 424 502 184 . 294 608 215 Average Temperature 115 | . 17 62 . 82 128 116 111 101 169 60 . 124 172 56 Received Heat Transfer 3548 | . 48 399 189 225 274 192 . 370 220 . . 9 899 723 Effects 24 | . . . . . 1 3 . 1 . . . 2 17 . Shutdowns 4 | . . . . . 1 . . . . . . . 3 . Energy Bleed 3 | . . . . . . . . . . . . . 3 . Interference 10 | . . . . . . 3 . . . . . 2 5 . Matter Decay 3 | . . . . . . . . . . . . . 3 . Short Circuit 1 | . . . . . . . . . . . . . 1 . Damage (minor) 3 | . . . . . . . . 1 . . . . 2 . Siege Activations 22 | . . . . . . . . . . . . . 22 . Total Turns 320 | . . . . . . . . . . . . . 320 . Longest Duration 70 | . . . . . . . . . . . . . 70 . Martial Activations . | . . . . . . . . . . . . . . . Shielding Activations . | . . . . . . . . . . . . . . . Robots Disrupted . | . . . . . . . . . . . . . . . Combat Hostiles . | . . . . . . . . . . . . . . . Robots Corrupted 1 | . . . . . . . . . . . . . 1 . Combat Hostiles . | . . . . . . . . . . . . . . . Parts Fried 8 | . . . . . . . . 1 3 . . . 4 . Impact Corruptions 2 | . . . . . . . . . . . . . 1 1 Robots Melted 6 | . . . 1 . . 1 . 2 . . . . 2 . Combat Hostiles 6 | . . . 1 . . 1 . 2 . . . . 2 . Parts Melted 67 | . . 2 7 12 11 4 . 8 7 . . . 16 . Heat Transferred 28498 | . 50 1772 2405 3308 6024 2520 100 2350 2562 50 . 87 7020 250 Parts Sabotaged . | . . . . . . . . . . . . . . . Parts Stolen . | . . . . . . . . . . . . . . . Parts Stripped . | . . . . . . . . . . . . . . . Power Chain Reactions 3 | . 1 . . . . . . 1 1 . . . . . Alert | -11 -10 -9 -8 -7 -6 -6 -6 -5 -4 -4 -4 -4 -3 -3 ------- Run | Yrd Mat Mat Mat Fac Fac Low Low Fac Fac Was Fac DSF Res Qua Maximum Alert Level 5 | . . 1 1 1 2 . . 2 2 . . 2 5 4 Low Security (%) 40 | 100 100 44 64 89 28 . . 35 . 100 100 59 . . Level 1 28 | . . 55 35 10 28 . . 47 54 . . 16 10 . Level 2 13 | . . . . . 43 . . 17 45 . . 24 20 . Level 3 8 | . . . . . . . . . . . . . 27 94 Level 4 7 | . . . . . . . . . . . . . 38 5 Level 5 . | . . . . . . . . . . . . . 3 . High Security . | . . . . . . . . . . . . . . . Max Security . | . . . . . . . . . . . . . . . Sterilizations 1 | . . . . . . . . . . . . 1 . . Peak Influence 1704 | . 30 375 282 230 521 . . 626 550 172 . 559 1704 1100 Initial 1100 | . . . 146 125 109 . . . 305 172 . 3 314 1100 Average 372 | . 1 193 187 71 311 . . 244 386 40 . 236 938 1037 Influence Increases 8070 | . 35 857 604 414 842 325 30 1120 591 . 5 596 2486 165 Destroy 0b10 Robot/C 4280 | . 20 600 360 220 440 240 20 480 320 . . 220 1360 . Destroy 0b10 Robot/NC 310 | . . 30 20 20 55 . . 20 55 . . 20 90 . Destroy Leader 980 | . 10 174 94 62 100 10 10 144 90 . . 20 266 . Allied During Kill 441 | . . . . . . . . . . . . 260 181 . Successful Hack 92 | . 2 14 16 . . . . 11 12 . 5 . 32 . Disable Machine 525 | . . . 60 75 30 . . 255 15 . . . 90 . Anti-Garrison Action 150 | . . . . . 150 . . . . . . . . . Destroy Structure 707 | . 3 9 39 37 7 . . 180 54 . . 76 302 . Partial Spotted 30 | . . . . . . . . . 15 . . . 15 . Lose Combat Pursuer 555 | . . 30 15 . 60 75 . 30 30 . . . 150 165 Influence Decreases 7297 | . 35 508 677 466 545 846 30 497 720 494 . 42 1341 1096 Entered New Map 2296 | . . . 203 151 115 194 . . 318 322 . 2 245 746 Time Decay 3936 | . 32 498 434 305 350 572 30 425 302 172 . . 626 190 Lost Part 835 | . 3 10 40 10 80 80 . 72 100 . . . 280 160 Lost Ally 230 | . . . . . . . . . . . . 40 190 . Squads Dispatched 60 | . 1 4 2 6 6 . . 11 8 . . 1 19 2 Investigation 12 | . 1 3 . . 1 . . 4 1 . . . 2 . Extermination 11 | . . . . 2 1 . . 3 2 . . . 3 . Reinforcement 15 | . . 1 2 1 2 . . 1 2 . . 1 3 2 Assault 5 | . . . . . 2 . . . . . . . 3 . Garrison 17 | . . . . 3 . . . 3 3 . . . 8 . Intercept . | . . . . . . . . . . . . . . . Searches Triggered . | . . . . . . . . . . . . . . . Construction Impeded 4 | . . . . . . . . 1 1 . . . 2 . Haulers Reinforced . | . . . . . . . . . . . . . . . Active Scanning Responses . | . . . . . . . . . . . . . . . Cargo Convoy Interrupts . | . . . . . . . . . . . . . . . Stealth | -11 -10 -9 -8 -7 -6 -6 -6 -5 -4 -4 -4 -4 -3 -3 --------- Run | Yrd Mat Mat Mat Fac Fac Low Low Fac Fac Was Fac DSF Res Qua Distress Signals 12 | . . 4 . . . . . 1 2 . . . 5 . Communications Jammed . | . . . . . . . . . . . . . . . Distress Signals . | . . . . . . . . . . . . . . . Times Spotted 298 | . 1 40 24 16 35 17 1 33 24 . . 5 80 22 Peak Tracking Total 12 | . 1 8 6 3 6 9 1 4 4 . . 4 10 12 Tactical Retreats 26 | . . 4 1 . 3 3 . 2 1 . . . 7 5 Traps | -11 -10 -9 -8 -7 -6 -6 -6 -5 -4 -4 -4 -4 -3 -3 ------- Run | Yrd Mat Mat Mat Fac Fac Low Low Fac Fac Was Fac DSF Res Qua Traps Triggered 10 | . 1 3 1 . 1 . . 1 1 . . . 2 . Indirectly . | . . . . . . . . . . . . . . . Trap Hack Attempts . | . . . . . . . . . . . . . . . Triggered . | . . . . . . . . . . . . . . . Disarmed . | . . . . . . . . . . . . . . . Reprogrammed . | . . . . . . . . . . . . . . . Reused . | . . . . . . . . . . . . . . . Traps Extracted . | . . . . . . . . . . . . . . . Installed . | . . . . . . . . . . . . . . . Triggered . | . . . . . . . . . . . . . . . Machines | -11 -10 -9 -8 -7 -6 -6 -6 -5 -4 -4 -4 -4 -3 -3 ---------- Run | Yrd Mat Mat Mat Fac Fac Low Low Fac Fac Was Fac DSF Res Qua Machines Disabled 36 | . . . 4 5 3 . . 17 1 . . . 6 . Max in Single Turn 13 | . . . 2 4 1 . . 13 1 . . . 1 . Garrison Access 1 | . . . . . 1 . . . . . . . . . Machines Repaired . | . . . . . . . . . . . . . . . Machines Dismantled . | . . . . . . . . . . . . . . . Machines Sabotaged . | . . . . . . . . . . . . . . . Overloaded Fab Kills . | . . . . . . . . . . . . . . . Hacking | -11 -10 -9 -8 -7 -6 -6 -6 -5 -4 -4 -4 -4 -3 -3 --------- Run | Yrd Mat Mat Mat Fac Fac Low Low Fac Fac Was Fac DSF Res Qua Machines Accessed 35 | . 2 10 5 5 3 . . 5 1 . 1 . 3 . Terminals 24 | . 2 7 4 3 . . . 5 . . 1 . 2 . Fabricators 2 | . . . . 1 . . . . . . . . 1 . Repair Stations 3 | . . 1 1 . . . . . 1 . . . . . Recycling Units 5 | . . 2 . 1 2 . . . . . . . . . Scanalyzers . | . . . . . . . . . . . . . . . Garrison Access 1 | . . . . . 1 . . . . . . . . . Total Hacks 96 | . 7 31 14 8 5 . . 15 3 . 3 . 10 . Successful 55 | . 4 21 10 4 . . . 8 1 . 1 . 6 . Failed 40 | . 3 9 4 4 5 . . 7 2 . 2 . 4 . Catastrophic 3 | . . 1 . . 1 . . 1 . . . . . . Database Lockouts 1 | . . 1 . . . . . . . . . . . . Manual 25 | . 1 6 1 . . . . 8 . . 2 . 7 . Terminals 73 | . 7 21 13 5 . . . 15 . . 3 . 9 . Fabricators 3 | . . . . 2 . . . . . . . . 1 . Repair Stations 10 | . . 6 1 . . . . . 3 . . . . . Recycling Units 7 | . . 4 . 1 2 . . . . . . . . . Scanalyzers . | . . . . . . . . . . . . . . . Garrison Access 3 | . . . . . 3 . . . . . . . . . Terminal Hacks 41 | . 4 13 10 3 . . . 5 . . 1 . 5 . Record 23 | . 3 8 6 . . . . 2 . . . . 4 . Robot Analysis 1 | . . . 1 . . . . . . . . . . . Prototype ID Bank 2 | . . 1 . . . . . . . . . . 1 . Open DSF 2 | . . . . 1 . . . . . . 1 . . . Alert Level 6 | . 1 1 1 1 . . . 2 . . . . . . Dispatch Records 1 | . . . 1 . . . . . . . . . . . Investigation Status 2 | . . 2 . . . . . . . . . . . . Recall Investigation 1 | . . . . . . . . 1 . . . . . . Hauler Manifests 1 | . . 1 . . . . . . . . . . . . Zone Layout 2 | . . . 1 1 . . . . . . . . . . Fabricator Hacks 1 | . . . . . . . . . . . . . 1 . Build 1 | . . . . . . . . . . . . . 1 . Repair Station Hacks 5 | . . 4 . . . . . . 1 . . . . . Scan Component 3 | . . 2 . . . . . . 1 . . . . . Repair 2 | . . 2 . . . . . . . . . . . . Recycling Unit Hacks 5 | . . 4 . 1 . . . . . . . . . . Recycle Component 1 | . . 1 . . . . . . . . . . . . Process 1 | . . 1 . . . . . . . . . . . . Report Inventory 2 | . . 1 . 1 . . . . . . . . . . Retrieve Matter 1 | . . 1 . . . . . . . . . . . . Scanalyzer . | . . . . . . . . . . . . . . . Garrison Access Hacks . | . . . . . . . . . . . . . . . Unauthorized Hacks 3 | . . . . . . . . 3 . . . . . . Terminals 3 | . . . . . . . . 3 . . . . . . Botnet 3 | . . . . . . . . 3 . . . . . . Fabricators . | . . . . . . . . . . . . . . . Repair Stations . | . . . . . . . . . . . . . . . Recycling Units . | . . . . . . . . . . . . . . . Scanalyzers . | . . . . . . . . . . . . . . . Garrison Access . | . . . . . . . . . . . . . . . Data Cores Recovered 1 | . . . . . . . . . 1 . . . . . Used . | . . . . . . . . . . . . . . . Hacking Detections 25 | . 1 7 4 2 2 . . 4 1 . 1 . 3 . Full Trace Events 10 | . 1 1 1 . 1 . . 3 1 . . . 2 . Feedback Events 2 | . . . . . . . . 2 . . . . . . Corruption 2 | . . . . . . . . 2 . . . . . . Feedback Blocked . | . . . . . . . . . . . . . . . Robot Schematics Acquired . | . . . . . . . . . . . . . . . Robots Built . | . . . . . . . . . . . . . . . Authchips . | . . . . . . . . . . . . . . . Time . | . . . . . . . . . . . . . . . Total Robot Build Rating . | . . . . . . . . . . . . . . . Part Schematics Acquired . | . . . . . . . . . . . . . . . Parts Built 1 | . . . . . . . . . . . . . 1 . Authchips . | . . . . . . . . . . . . . . . Time 74 | . . . . . . . . . . . . . 74 . Total Part Build Rating 9 | . . . . . . . . . . . . . 9 . Parts Repaired 2 | . . 2 . . . . . . . . . . . . Time 64 | . . 64 . . . . . . . . . . . . Parts Recycled 1 | . . 1 . . . . . . . . . . . . Recycled Matter 154 | . . 154 . . . . . . . . . . . . Retrieved Matter 154 | . . 154 . . . . . . . . . . . . Retrieved Components . | . . . . . . . . . . . . . . . Parts Scanalyzed . | . . . . . . . . . . . . . . . Part Schematics Acquired . | . . . . . . . . . . . . . . . Parts Damaged . | . . . . . . . . . . . . . . . Bothacking | -11 -10 -9 -8 -7 -6 -6 -6 -5 -4 -4 -4 -4 -3 -3 ------------ Run | Yrd Mat Mat Mat Fac Fac Low Low Fac Fac Was Fac DSF Res Qua Used RIF Installer . | . . . . . . . . . . . . . . . Robots Hacked . | . . . . . . . . . . . . . . . Non-combat . | . . . . . . . . . . . . . . . Combat . | . . . . . . . . . . . . . . . Robot Hacks Applied . | . . . . . . . . . . . . . . . Relay Couplers Released 1 | . . . . . 1 . . . . . . . . . Machine Destruction 1 | . . . . . 1 . . . . . . . . . Fabnet Peak Effective % . | . . . . . . . . . . . . . . . Robots Rewired . | . . . . . . . . . . . . . . . Allies Hacked . | . . . . . . . . . . . . . . . Hacks Repelled . | . . . . . . . . . . . . . . . Allies | -11 -10 -9 -8 -7 -6 -6 -6 -5 -4 -4 -4 -4 -3 -3 -------- Run | Yrd Mat Mat Mat Fac Fac Low Low Fac Fac Was Fac DSF Res Qua Total Allies 20 | . . . . . . . . . . 20 . . . . Largest Group 20 | . . . . . . . . . . 20 20 19 10 . Highest-Rated Group 808 | . . . . . . . . . . 808 808 762 403 . Highest-Rated Ally 50 | . . . . . . . . . . 50 50 50 50 . Initial Warlord ECA Mod 18 | . . . . . . . . . . . . . 9 9 Total Orders . | . . . . . . . . . . . . . . . Ally Attacks 89 | . . . . . . . . . . . . 41 48 . Total Damage 3844 | . . . . . . . . . . . . 1951 1893 . Kills 21 | . . . . . . . . . . . . 9 12 . Allies Corrupted . | . . . . . . . . . . . . . . . Allies Melted . | . . . . . . . . . . . . . . . Intel | -11 -10 -9 -8 -7 -6 -6 -6 -5 -4 -4 -4 -4 -3 -3 ------- Run | Yrd Mat Mat Mat Fac Fac Low Low Fac Fac Was Fac DSF Res Qua Active Infowar (turns) 1334 | . 74 319 57 . . . . 590 . . . . 294 . Optics 98 | . . 98 . . . . . . . . . . . . IFF 590 | . . . . . . . . 590 . . . . . . T.N.C. 57 | . . . 57 . . . . . . . . . . . Cloaking 294 | . . . . . . . . . . . . . 294 . ECM 295 | . 74 221 . . . . . . . . . . . . Robot Analysis Total 1 | . . . 1 . . . . . . . . . . . Derelict Logs Recovered 3 | . . . . . . 2 1 . . . . . . . Drone Launches . | . . . . . . . . . . . . . . . Drone Recoveries . | . . . . . . . . . . . . . . . Exploration | -11 -10 -9 -8 -7 -6 -6 -6 -5 -4 -4 -4 -4 -3 -3 ------------- Run | Yrd Mat Mat Mat Fac Fac Low Low Fac Fac Was Fac DSF Res Qua Turns Passed 13579 | 46 337 1628 1068 974 798 2347 434 1809 665 768 21 137 2163 384 Spaces Moved 6135 | 42 238 715 522 504 311 1053 257 890 209 286 10 55 839 204 Core 26 | 20 . . . . . . . . . . . . . 6 Treads 5012 | . . 578 522 504 311 1053 257 559 79 47 10 55 839 198 Legs 766 | 22 238 137 . . . . . . 130 239 . . . . Wheels 331 | . . . . . . . . 331 . . . . . . Hover . | . . . . . . . . . . . . . . . Flight . | . . . . . . . . . . . . . . . Fastest Speed 50 | 50 120 120 152 152 157 162 162 130 190 190 232 232 141 50 Average Speed 170 | 89 120 152 156 154 162 211 162 158 217 238 232 232 152 173 Slowest Speed 950 | 120 120 240 240 157 170 246 162 240 400 320 232 232 235 950 Overloaded Moves . | . . . . . . . . . . . . . . . Propulsion Burnouts . | . . . . . . . . . . . . . . . Robots Hopped . | . . . . . . . . . . . . . . . Potential Cave-ins . | . . . . . . . . . . . . . . . Cave-ins Triggered . | . . . . . . . . . . . . . . . Exploration Rate (%) 38 | 3 38 58 52 13 11 93 30 22 6 95 1 84 27 42 Regions Visited 14 Branch Regions 3 Pre-discovered Areas 1 | . . . . . . 1 . . . . . . . . Known Exits Taken 1 | . . . . . . . . . . . 1 . . . Unknown Exits Taken 10 | 1 1 1 1 1 1 1 1 1 . . . . 1 . Scrap Searched 13 | . . . . . . 12 1 . . . . . . . Spaces Dug . | . . . . . . . . . . . . . . . Terrain Destroyed 366 | . 3 . 39 41 3 17 5 91 25 . . . 142 . Melee . | . . . . . . . . . . . . . . . Projectile 111 | . . . . . 3 17 5 24 20 . . . 42 . AOE 253 | . 3 . 39 41 . . . 67 4 . . . 99 . Terrain Rammed . | . . . . . . . . . . . . . . . Walls Destroyed . | . . . . . . . . . . . . . . . Machines Disabled . | . . . . . . . . . . . . . . . Actions | -11 -10 -9 -8 -7 -6 -6 -6 -5 -4 -4 -4 -4 -3 -3 --------- Run | Yrd Mat Mat Mat Fac Fac Low Low Fac Fac Was Fac DSF Res Qua Total 8076 | 48 277 1070 660 623 471 1126 268 1127 320 377 9 61 1411 228 Wait 832 | . 6 158 39 62 65 9 . 65 28 57 . 2 338 3 Move 6122 | 41 237 714 521 503 310 1052 256 889 209 285 9 54 838 204 Hop . | . . . . . . . . . . . . . . . Pick Up 133 | 2 9 24 7 7 13 12 3 25 1 6 . 2 19 3 Fast Attach 75 | 5 2 11 6 . 1 2 . 12 9 5 . . 22 . Attach 93 | . 2 4 6 4 9 10 2 13 10 3 . . 26 4 Detach 43 | . 1 9 3 1 . . . 6 4 7 . . 12 . Swap 64 | . 7 17 7 5 8 3 . 9 2 3 . 1 2 . Drop 113 | . 5 26 11 5 5 4 3 29 3 11 . . 7 4 Fire 589 | . 8 107 60 36 55 34 4 78 53 . . 2 147 5 Melee . | . . . . . . . . . . . . . . . Ram 2 | . . . . . . . . 1 . . . . . 1 Kick 1 | . . . . . . . . . 1 . . . . . Crush 7 | . . . . . 5 . . . . . . . . 2 Escape Stasis 2 | . . . . . . . . . . . . . . 2 Rewire . | . . . . . . . . . . . . . . . Trap . | . . . . . . . . . . . . . . . Miscellaneous . | . . . . . . . . . . . . . . . Route ------- -11/Scrapyard -10/Materials (discovered 2 exits: *Mat / [*Min]) -9/Materials (discovered 4 exits: *Mat x2 / [*Min] / [*Sto]) -8/Materials -7/Factory (discovered 2 exits: *Fac x2) -6/Factory -6/Lower Caves -6/Lower Caves (discovered 2 exits: *Fac / Zio) -5/Factory -4/Factory -4/Waste -4/Factory -4/DSF -3/Research -3/Quarantine History --------- Turn | Location | Event 15 | -11/Scrapyard | Discovered new exit (range 14) 47 | -11/Scrapyard | Entered Materials 48 | -10/Materials | Met a group of wandering Federalists 117 | -10/Materials | Discovered new exit (range 15) 266 | -10/Materials | Discovered new exit (range 14) 331 | -10/Materials | Build established: Mutant 384 | -10/Materials | Entered another Materials area 384 | -9/Materials | Evolved 2 slots: Propulsion x2 860 | -9/Materials | Discovered new exit (range 16) 1211 | -9/Materials | Repaired Imp. Treads 1245 | -9/Materials | Repaired Imp. Treads 1342 | -9/Materials | Build established: Scavenger-Mutant 1404 | -9/Materials | Discovered new exit (range 10) 1519 | -9/Materials | Central database locked down 1607 | -9/Materials | Discovered new exit (range 7) 1860 | -9/Materials | Core integrity fell below 50% 1999 | -9/Materials | Discovered new exit (range 9) 2012 | -9/Materials | Entered another Materials area 2012 | -8/Materials | Evolved 2 slots: Utility x2 2210 | -8/Materials | Build established: Mutant 2583 | -8/Materials | Build established: Scavenger-Mutant 3040 | -8/Materials | Discovered new exit (range 9) 3051 | -8/Materials | Build established: Mutant 3080 | -8/Materials | Entered Factory 3080 | -7/Factory | Evolved 2 slots: Utility x1, Weapon x1 3207 | -7/Factory | Discovered new exit (range 15) 3363 | -7/Factory | Build established: Tank 3722 | -7/Factory | Garrison activated, responded to threat 3784 | -7/Factory | Discovered new exit (range 7) 4054 | -7/Factory | Entered another Factory area 4054 | -6/Factory | Evolved 2 slots: Utility x1, Weapon x1 4668 | -6/Factory | Build established: Scavenger-Tank 4679 | -6/Factory | Lost 5 parts (1p2u2w) 4730 | -6/Factory | Discovered new exit (range 13) 4852 | -6/Factory | Entered Lower Caves 4853 | -6/Lower Caves | Encountered a Warlord checkpoint 5239 | -6/Lower Caves | Lost 7 parts (3n2u2w) 5983 | -6/Lower Caves | Learned Factory terminal intel 6027 | -6/Lower Caves | Learned location of Zion (-6) 6203 | -6/Lower Caves | Discovered new exit (range 9) 6853 | -6/Lower Caves | Build established: Scavenger-Gunner 6929 | -6/Lower Caves | Acquired the password to a Derelict Tinkerer's latest research 7199 | -6/Lower Caves | Entered another Lower Caves area 7336 | -6/Lower Caves | Discovered new exit (range 12) 7413 | -6/Lower Caves | Identified exit to Zion 7633 | -6/Lower Caves | Entered Factory 7633 | -5/Factory | Evolved 2 slots: Power x1, Utility x1 7634 | -5/Factory | Loaded intel: 28 terminal locations 8109 | -5/Factory | Build established: Scavenger-Tank 8957 | -5/Factory | System corruption reached 10% 9068 | -5/Factory | Garrison activated, responded to threat 9293 | -5/Factory | Discovered new exit (range 15) 9388 | -5/Factory | Spotted B-75 Beast 9400 | -5/Factory | Destroyed B-75 Beast 9434 | -5/Factory | Build established: Scavenger-Gunner 9442 | -5/Factory | Entered another Factory area 9442 | -4/Factory | Evolved 2 slots: Utility x2 9632 | -4/Factory | Garrison activated, responded to threat 9723 | -4/Factory | Lost 3 parts (2n1u) 9951 | -4/Factory | Lost 6 parts (2p1n2u1w) 10107 | -4/Factory | Sucked down chute 10107 | -4/Factory | Entered Waste 10108 | -4/Waste | Joined by Warlord forces that had cleared the area 10157 | -4/Waste | Found Prototype Device 10157 | -4/Waste | Identified Exp. Transmission Jammer 10265 | -4/Waste | Found Damper Plating 10678 | -4/Waste | Discovered new exit (range 13) 10766 | -4/Waste | Found Prototype Reactor 10770 | -4/Waste | Identified Vortex Chain Reactor 10875 | -4/Waste | Entered Factory 10875 | -4/Factory | Accompanied by 20 allies 10896 | -4/Factory | Identified exit to DSF 10896 | -4/Factory | Entered DSF 10896 | -4/DSF | Accompanied by 19 allies 10939 | -4/DSF | Additional patrols routed to DSF 11001 | -4/DSF | Discovered new exit (range 14) 11012 | -4/DSF | Build established: Scavenger-Tank 11030 | -4/DSF | Sterilization system engaged 11033 | -4/DSF | Entered Research 11033 | -3/Research | Accompanied by 10 allies 11033 | -3/Research | Evolved 2 slots: Propulsion x1, Utility x1 11202 | -3/Research | Lost 3 allies 11407 | -3/Research | Fabricated Exp. Biometal Heavy Treads (x1) 11444 | -3/Research | Garrison activated, responded to threat 11497 | -3/Research | Lost 5 allies 11713 | -3/Research | Build established: Tank 11996 | -3/Research | Garrison activated, responded to threat 12033 | -3/Research | First assault squad dispatched 12110 | -3/Research | Lost 9 parts (1p2n4u2w) 12270 | -3/Research | Destroyed 8 combat bots 12372 | -3/Research | Lost 5 parts (2u3w) 12480 | -3/Research | Found Prototype Launcher 12527 | -3/Research | Identified Hellfire Missile Launcher 12707 | -3/Research | Garrison activated, responded to threat 12715 | -3/Research | System corruption reached 10% 12744 | -3/Research | Build established: Scavenger-Tank 12784 | -3/Research | Spotted B-86 Titan 12911 | -3/Research | Destroyed B-86 Titan 12973 | -3/Research | Found Prototype Device 12973 | -3/Research | Identified Adv. Kinecellerator 13119 | -3/Research | Garrison activated, responded to threat 13141 | -3/Research | Lost 3 parts (2u1w) 13175 | -3/Research | High security lockdown imminent 13180 | -3/Research | Discovered new exit (range 10) 13196 | -3/Research | Entered Quarantine 13307 | -3/Quarantine | Scanned by Researcher 13354 | -3/Quarantine | Cryocooling Duct disabled 13369 | -3/Quarantine | Ambient heat levels rising (+20) 13369 | -3/Quarantine | Non-combat units ordered to evacuate 13445 | -3/Quarantine | Lost 3 parts (1u2w) 13460 | -3/Quarantine | System corruption reached 30% 13536 | -3/Quarantine | Core integrity fell below 50% 13546 | -3/Quarantine | Core integrity fell below 20% 13571 | -3/Quarantine | Lost 9 parts (1p4n3u1w) 13580 | -3/Quarantine | Destroyed by P-80 Master with Gamma Rifle Last Messages --------------- 13511_ System corrupted: Energy discharge (-49). 13511_ Med. Treads destroyed. 13518_ Arm. Heavy Treads destroyed. 13518_ Com. HERF Cannon destroyed. 13523_ Mic. Antimatter Reactor destroyed. 13526_ System corrupted: Heat flow error (+280). 13540_ Lrg. Storage Unit destroyed. 13540_ Critical hit (Burn: +50). 13540_ Adv. Heat Sink destroyed. 13540_ Lrg. Storage Unit destroyed. 13556_ G-67 Veteran destroyed. 13557_ System corrupted: Matter fused (-8). 13560_ Critical hit (Burn: +50). 13576_ Imp. Heavy Siege Treads destroyed. 13577_ System corrupted: Imp. Heavy Siege Treads fused. 13577_ Critical hit (Burn: +50). 13578_ Imp. Heavy Siege Treads destroyed. [Achievement: 20k Club] [Achievement: Achiever] Map ----- +----------------------------------------------------+ | | | | | | | | | | | | | | | | | | | | | | | | | | | | | | | | | | | | | ??????????????????##########?????????????????????? | | ??????????????????# g #?????????????????????? | | ??????????????????# """ #?????????????????????? | | ??????????????????# ! """gg#?????????????????????? | | ??????????????????#!%=""" g#?????????????????????? | | ??????????????????#![* #?????????????????????? | | ??????????????????#[!!"""pl#?????????????????????? | | ??????????????????#*[["""@ #?????????????????????? | | ????###########???# !!"""gp#?????????????????????? | | ????# #???#! !#?????????????????????? | | ##### #???#####/###### #?????????????????? | | # "" """" ######## #?????????????????? | | + / ##### #?????????????????? | | # """ """ ######## #???????????????????????? | | # # " " "*" #??????# #???????????????????????? | | # # """ """ #??????# #???????????????????????? | | # # #??????# #???????????????????????? | | # #####+######?????# #???????????????????????? | | # ???? #???????????????????????? | | # ???? +???????????????????????? | | # ???? #???????????????????????? | | # ^ ###/########?????# #???????????????????????? | | # #?? ???????????# #???????????????????????? | | # #??? #??????????? #???????????????????????? | | + #???? #??????????? #???????????????????????? | | # #?????#??????????? #???????????????????????? | | # #????????????????? ????????????????????????? | | # #????????????????????????????????????????????? | | # #????????????????????????????????????????????? | | # #????????????????????????????????????????????? | | # #????????????????????????????????????????????? | | # #????????????????????????????????????????????? | +----------------------------------------------------+ Best States ------------- Heat Dissipation 122 Energy Generation 55 Energy Capacity 700 Matter Stores 300 Matter Capacity 300 Sight Range 18 Terrain Scan Density 10 ECM Strength 1 Cloak Strength 3 Additional Mass Support 9 Base Temperature (-) 200 EM Shielding 3 Armor Coverage 3200 Resistance: KI 20 Resistance: EX 50 Resistance: EM 90 Propulsion Shielding 66 Utility Shielding 15 Weapon Cycling 25 Phase Shifting 5 Evasion (%) 55 Target Analysis 11 Core Analysis 6 Recoil Reduction 5 Energy Filtering 30 Particle Charging 15 Kinecelleration 50 Item Schematics ----------------- None Robot Schematics ------------------ None Fabricated ------------ Exp. Biometal Heavy Treads | x1 | -3/Research | Preloaded Repaired ---------- Imp. Treads | 54% | -9/Materials Imp. Treads | 71% | -9/Materials Alien Tech Used ----------------- None Achievements -------------- 20k Club Achiever Backstab It Was An Accident, I Swear Oh No You Don't! Oops Remodeling Rockin' Loadout Tank Turtlemind We Are Legion Challenges ------------ None Game ------ Seed CouplerSpreadDriveblaster Manual? 0 Play Time 05:55:40 Cumulative 18.8 hours Start 2025.07.17 @ 23:52:00 End 2025.07.19 @ 05:50:36 Sessions 9 Manual Loads 0 Difficulty Rogue Special Mode None Game No. 15 Rogue 15 Adventurer 0 Explorer 0 Win Type - Total 0 Types 0/0/0/0/0/0/0/0/0/0 Lore% 10 Gallery% 20 Achievement% 25 Wizard Run 0 Options --------- Layout 1 ASCII 0 Keyboard 1 Movement Vi Keybinds 0 Fullscreen 2 Font 24/Smallcaps Map View 50x35 Zoom Use 0% Tactical HUD 1 Map Filters NONE Filters NONE Steam 1 RUN: eaba8412-f9d3-4f0e-a06f-6a93ec362076